[Event "Titled Tuesday Blitz May 30 Late 2023"]
[White "Da Silva, Alessandro Rodrigues"]
[Black "sebastianmarinp"]
[WhiteFideId "2107546"]
[WhiteElo "2181"]
[BlackElo "2389"]
[Result "1-0"]
[Round "06"]
[TimeControl "180+2"]
[Date "2023.05.31"]
[WhiteClock "0:00:15"]
[BlackClock "0:00:02"]

1. e4 {[%clk 0:02:53]}  e5 {[%clk 0:02:59]} 2. d4 {[%clk 0:02:52]}  exd4 {[%clk 0:02:58]} 3. Bc4 {[%clk 0:02:51]}  Nf6 {[%clk 0:02:54]} 4. Nf3 {[%clk 0:02:51]}  Nc6 {[%clk 0:02:46]} 5. O-O {[%clk 0:02:48]}  Nxe4 {[%clk 0:02:45]} 6. Re1 {[%clk 0:02:40]}  d5 {[%clk 0:02:45]} 7. Bxd5 {[%clk 0:02:39]}  Qxd5 {[%clk 0:02:46]} 8. Nc3 {[%clk 0:02:37]}  Qd8 {[%clk 0:02:46]} 9. Nxe4 {[%clk 0:02:23]}  Be7 {[%clk 0:02:44]} 10. Bg5 {[%clk 0:02:20]}  O-O {[%clk 0:02:41]} 11. Bxe7 {[%clk 0:02:18]}  Qxe7 {[%clk 0:02:34]} 12. Nxd4 {[%clk 0:02:16]}  Nxd4 {[%clk 0:02:21]} 13. Qxd4 {[%clk 0:02:15]}  Bf5 {[%clk 0:02:18]} 14. Ng3 {[%clk 0:02:11]}  Qd7 {[%clk 0:02:12]} 15. Qc3 {[%clk 0:02:05]}  Bg6 {[%clk 0:02:06]} 16. Rad1 {[%clk 0:02:02]}  Qb5 {[%clk 0:02:03]} 17. b3 {[%clk 0:01:53]}  h6 {[%clk 0:01:40]} 18. h4 {[%clk 0:01:45]}  c5 {[%clk 0:01:28]} 19. h5 {[%clk 0:01:42]}  Bh7 {[%clk 0:01:27]} 20. Re5 {[%clk 0:01:36]}  Rac8 {[%clk 0:01:26]} 21. Re7 {[%clk 0:01:27]}  Qc6 {[%clk 0:01:08]} 22. Rdd7 {[%clk 0:01:23]}  b5 {[%clk 0:00:48]} 23. Rxa7 {[%clk 0:01:19]}  c4 {[%clk 0:00:48]} 24. b4 {[%clk 0:00:55]}  Ra8 {[%clk 0:00:42]} 25. Nf1 {[%clk 0:00:27]}  Rxa7 {[%clk 0:00:37]} 26. Rxa7 {[%clk 0:00:28]}  Qd5 {[%clk 0:00:29]} 27. Ne3 {[%clk 0:00:24]}  Qxh5 {[%clk 0:00:29]} 28. Ra5 {[%clk 0:00:21]}  Rd8 {[%clk 0:00:24]} 29. a4 {[%clk 0:00:20]}  Qg6 {[%clk 0:00:17]} 30. Rxb5 {[%clk 0:00:19]}  Qa6 {[%clk 0:00:12]} 31. Ra5 {[%clk 0:00:19]}  Qd6 {[%clk 0:00:10]} 32. Qxc4 {[%clk 0:00:17]}  Rb8 {[%clk 0:00:10]} 33. Ra7 {[%clk 0:00:17]}  Qf6 {[%clk 0:00:08]} 34. Nd5 {[%clk 0:00:16]}  Qa1+ {[%clk 0:00:04]} 35. Qf1 {[%clk 0:00:16]}  Qe5 {[%clk 0:00:05]} 36. Qd3 {[%clk 0:00:16]}  Rd8 {[%clk 0:00:03]} 37. Qe3 {[%clk 0:00:15]}  Qxd5 {[%clk 0:00:02]} 38. Qe7 {[%clk 0:00:15]} 1-0


[Site "https://www.chess.com"]

[Event "Titled Tuesday Blitz May 30 Late 2023"]
[White "dodoucb"]
[Black "Oliveira, Tiago Batista"]
[BlackFideId "2108291"]
[WhiteElo "2343"]
[BlackElo "1962"]
[Result "0-1"]
[Round "06"]
[TimeControl "180+2"]
[Date "2023.05.31"]
[WhiteClock "0:01:23"]
[BlackClock "0:01:36"]

1. e4 {[%clk 0:02:59]}  e5 {[%clk 0:02:59]} 2. Nf3 {[%clk 0:02:58]}  Nc6 {[%clk 0:02:59]} 3. Bb5 {[%clk 0:02:58]}  a6 {[%clk 0:03:00]} 4. Ba4 {[%clk 0:02:57]}  Nf6 {[%clk 0:03:00]} 5. O-O {[%clk 0:02:40]}  Nxe4 {[%clk 0:02:59]} 6. Re1 {[%clk 0:02:40]}  Nc5 {[%clk 0:02:58]} 7. Nxe5 {[%clk 0:02:33]}  Nxe5 {[%clk 0:02:53]} 8. Rxe5+ {[%clk 0:02:34]}  Be7 {[%clk 0:02:51]} 9. Bb3 {[%clk 0:02:29]}  Nxb3 {[%clk 0:02:50]} 10. axb3 {[%clk 0:02:28]}  O-O {[%clk 0:02:46]} 11. Nc3 {[%clk 0:02:15]}  Bf6 {[%clk 0:02:43]} 12. Re1 {[%clk 0:02:11]}  d5 {[%clk 0:02:43]} 13. d3 {[%clk 0:02:07]}  Be6 {[%clk 0:02:38]} 14. Bf4 {[%clk 0:02:05]}  Qd7 {[%clk 0:02:36]} 15. Be5 {[%clk 0:01:55]}  Bxe5 {[%clk 0:02:29]} 16. Rxe5 {[%clk 0:01:54]}  f6 {[%clk 0:01:57]} 17. Re1 {[%clk 0:01:42]}  Rfe8 {[%clk 0:01:55]} 18. Qf3 {[%clk 0:01:33]}  c6 {[%clk 0:01:49]} 19. h3 {[%clk 0:01:25]}  Bf7 {[%clk 0:01:38]} 20. Ra4 {[%clk 0:01:23]}  Rxe1+ {[%clk 0:01:36]} 0-1


[Site "https://www.chess.com"]

[Event "Titled Tuesday Blitz May 30 Late 2023"]
[White "deloewre"]
[Black "Celestino, Rafael Teixeira"]
[BlackFideId "2108925"]
[WhiteElo "2104"]
[BlackElo "2339"]
[Result "1-0"]
[Round "06"]
[TimeControl "180+2"]
[Date "2023.05.31"]
[WhiteClock "0:00:04"]
[BlackClock "0:00:50"]

1. d4 {[%clk 0:03:00]}  Nf6 {[%clk 0:02:59]} 2. c4 {[%clk 0:02:59]}  e6 {[%clk 0:02:59]} 3. Nc3 {[%clk 0:02:56]}  d5 {[%clk 0:02:59]} 4. cxd5 {[%clk 0:02:54]}  exd5 {[%clk 0:03:00]} 5. Bg5 {[%clk 0:02:52]}  h6 {[%clk 0:02:59]} 6. Bxf6 {[%clk 0:02:48]}  Qxf6 {[%clk 0:02:59]} 7. Nxd5 {[%clk 0:02:42]}  Qg5 {[%clk 0:02:59]} 8. Nc3 {[%clk 0:02:39]}  Bb4 {[%clk 0:02:53]} 9. Nf3 {[%clk 0:02:37]}  Qa5 {[%clk 0:02:51]} 10. Qc2 {[%clk 0:02:28]}  O-O {[%clk 0:02:45]} 11. Nd2 {[%clk 0:02:26]}  Nc6 {[%clk 0:02:38]} 12. e3 {[%clk 0:02:24]}  Re8 {[%clk 0:02:33]} 13. Be2 {[%clk 0:02:12]}  Qg5 {[%clk 0:02:29]} 14. Nf3 {[%clk 0:01:33]}  Qxg2 {[%clk 0:02:25]} 15. Rg1 {[%clk 0:01:31]}  Qh3 {[%clk 0:02:26]} 16. O-O-O {[%clk 0:01:25]}  Bf5 {[%clk 0:02:15]} 17. Qb3 {[%clk 0:01:18]}  Bxc3 {[%clk 0:01:42]} 18. Qxc3 {[%clk 0:01:15]}  Be4 {[%clk 0:01:41]} 19. Rg3 {[%clk 0:01:11]}  Qe6 {[%clk 0:01:37]} 20. d5 {[%clk 0:01:08]}  Qe5 {[%clk 0:01:22]} 21. dxc6 {[%clk 0:01:06]}  Bxf3 {[%clk 0:01:15]} 22. Qxe5 {[%clk 0:01:00]}  Rxe5 {[%clk 0:01:14]} 23. Bxf3 {[%clk 0:00:57]}  bxc6 {[%clk 0:01:14]} 24. Kb1 {[%clk 0:00:51]}  Rb8 {[%clk 0:01:11]} 25. Bxc6 {[%clk 0:00:47]}  Rc5 {[%clk 0:01:11]} 26. Bd5 {[%clk 0:00:41]}  Rcb5 {[%clk 0:01:08]} 27. Bb3 {[%clk 0:00:39]}  a5 {[%clk 0:01:07]} 28. Rd2 {[%clk 0:00:38]}  Kf8 {[%clk 0:01:04]} 29. Rg4 {[%clk 0:00:37]}  h5 {[%clk 0:01:01]} 30. Rgd4 {[%clk 0:00:35]}  Rf5 {[%clk 0:00:49]} 31. f4 {[%clk 0:00:33]}  Re8 {[%clk 0:00:42]} 32. Rd8 {[%clk 0:00:30]}  f6 {[%clk 0:00:41]} 33. Rxe8+ {[%clk 0:00:28]}  Kxe8 {[%clk 0:00:42]} 34. Rd5 {[%clk 0:00:26]}  Rxd5 {[%clk 0:00:40]} 35. Bxd5 {[%clk 0:00:25]}  Ke7 {[%clk 0:00:40]} 36. Kc2 {[%clk 0:00:24]}  g5 {[%clk 0:00:40]} 37. Kd3 {[%clk 0:00:23]}  Kd6 {[%clk 0:00:41]} 38. Bf7 {[%clk 0:00:20]}  h4 {[%clk 0:00:41]} 39. Ke4 {[%clk 0:00:17]}  Ke7 {[%clk 0:00:41]} 40. Bc4 {[%clk 0:00:16]}  c5 {[%clk 0:00:41]} 41. Kd5 {[%clk 0:00:14]}  a4 {[%clk 0:00:41]} 42. Kxc5 {[%clk 0:00:12]}  g4 {[%clk 0:00:42]} 43. b4 {[%clk 0:00:11]}  axb3 {[%clk 0:00:42]} 44. axb3 {[%clk 0:00:10]}  Kd7 {[%clk 0:00:43]} 45. b4 {[%clk 0:00:09]}  Kc7 {[%clk 0:00:43]} 46. b5 {[%clk 0:00:08]}  Kb7 {[%clk 0:00:43]} 47. b6 {[%clk 0:00:07]}  Kb8 {[%clk 0:00:43]} 48. Bd5 {[%clk 0:00:07]}  f5 {[%clk 0:00:42]} 49. Kd6 {[%clk 0:00:06]}  Kc8 {[%clk 0:00:42]} 50. Ke5 {[%clk 0:00:06]}  g3 {[%clk 0:00:43]} 51. Kxf5 {[%clk 0:00:06]}  Kd7 {[%clk 0:00:43]} 52. hxg3 {[%clk 0:00:06]}  hxg3 {[%clk 0:00:43]} 53. Kg4 {[%clk 0:00:05]}  g2 {[%clk 0:00:44]} 54. Bxg2 {[%clk 0:00:04]}  Kc8 {[%clk 0:00:44]} 55. Kg5 {[%clk 0:00:03]}  Kd7 {[%clk 0:00:45]} 56. Kg6 {[%clk 0:00:03]}  Kc8 {[%clk 0:00:46]} 57. f5 {[%clk 0:00:03]}  Kd7 {[%clk 0:00:47]} 58. f6 {[%clk 0:00:03]}  Kc8 {[%clk 0:00:48]} 59. Kg7 {[%clk 0:00:03]}  Kd7 {[%clk 0:00:48]} 60. f7 {[%clk 0:00:04]}  Kd6 {[%clk 0:00:49]} 61. f8=Q+ {[%clk 0:00:04]}  Ke5 {[%clk 0:00:50]} 62. Qf6# {[%clk 0:00:04]} 1-0


[Site "https://www.chess.com"]

[Event "Titled Tuesday Blitz May 30 Late 2023"]
[White "Gomez Barrera, Javiera Belen"]
[Black "Maluco_do_Natal_00"]
[WhiteFideId "3418723"]
[WhiteElo "2119"]
[BlackElo "2069"]
[Result "1-0"]
[Round "06"]
[TimeControl "180+2"]
[Date "2023.05.31"]
[WhiteClock "0:00:55"]
[BlackClock "0:00:02"]

1. d4 {[%clk 0:03:00]}  d5 {[%clk 0:02:59]} 2. c4 {[%clk 0:02:59]}  c6 {[%clk 0:02:59]} 3. Nc3 {[%clk 0:02:59]}  Nf6 {[%clk 0:02:59]} 4. Nf3 {[%clk 0:02:57]}  dxc4 {[%clk 0:02:59]} 5. a4 {[%clk 0:02:56]}  Bf5 {[%clk 0:02:59]} 6. e3 {[%clk 0:02:54]}  e6 {[%clk 0:02:57]} 7. Bxc4 {[%clk 0:02:54]}  Bb4 {[%clk 0:02:56]} 8. O-O {[%clk 0:02:54]}  Nbd7 {[%clk 0:02:57]} 9. Qb3 {[%clk 0:02:46]}  a5 {[%clk 0:02:29]} 10. Na2 {[%clk 0:02:45]}  Qe7 {[%clk 0:02:29]} 11. Nxb4 {[%clk 0:02:42]}  Qxb4 {[%clk 0:02:28]} 12. Qxb4 {[%clk 0:02:40]}  axb4 {[%clk 0:02:29]} 13. Bd2 {[%clk 0:02:37]}  Nb6 {[%clk 0:02:12]} 14. Bb3 {[%clk 0:02:24]}  Nbd5 {[%clk 0:02:01]} 15. Ne5 {[%clk 0:02:19]}  Ne4 {[%clk 0:01:52]} 16. Be1 {[%clk 0:02:19]}  f6 {[%clk 0:01:33]} 17. Nc4 {[%clk 0:02:11]}  b5 {[%clk 0:01:23]} 18. Nd2 {[%clk 0:02:04]}  Nd6 {[%clk 0:01:14]} 19. Bxd5 {[%clk 0:01:39]}  exd5 {[%clk 0:01:01]} 20. Nb3 {[%clk 0:01:33]}  Bd3 {[%clk 0:00:54]} 21. Bxb4 {[%clk 0:01:33]}  Bxf1 {[%clk 0:00:48]} 22. Bxd6 {[%clk 0:01:33]}  Bc4 {[%clk 0:00:40]} 23. Nc5 {[%clk 0:01:33]}  bxa4 {[%clk 0:00:32]} 24. b3 {[%clk 0:01:33]}  Bb5 {[%clk 0:00:19]} 25. bxa4 {[%clk 0:01:33]}  Bc4 {[%clk 0:00:15]} 26. a5 {[%clk 0:01:29]}  Kf7 {[%clk 0:00:14]} 27. Bc7 {[%clk 0:01:29]}  Rhc8 {[%clk 0:00:11]} 28. Bb6 {[%clk 0:01:29]}  Rcb8 {[%clk 0:00:11]} 29. Rc1 {[%clk 0:01:28]}  h5 {[%clk 0:00:07]} 30. h4 {[%clk 0:01:25]}  Kg6 {[%clk 0:00:06]} 31. Kh2 {[%clk 0:01:25]}  Bb5 {[%clk 0:00:04]} 32. Kg3 {[%clk 0:01:25]}  Bc4 {[%clk 0:00:04]} 33. e4 {[%clk 0:01:21]}  Kf7 {[%clk 0:00:02]} 34. f3 {[%clk 0:01:19]}  Kg6 {[%clk 0:00:02]} 35. Kf4 {[%clk 0:01:18]}  Kf7 {[%clk 0:00:02]} 36. g4 {[%clk 0:01:16]}  hxg4 {[%clk 0:00:02]} 37. fxg4 {[%clk 0:01:16]}  g6 {[%clk 0:00:02]} 38. h5 {[%clk 0:01:16]}  gxh5 {[%clk 0:00:02]} 39. gxh5 {[%clk 0:01:16]}  Rh8 {[%clk 0:00:02]} 40. Rh1 {[%clk 0:01:05]}  Be2 {[%clk 0:00:02]} 41. h6 {[%clk 0:01:04]}  Rag8 {[%clk 0:00:02]} 42. exd5 {[%clk 0:01:03]}  cxd5 {[%clk 0:00:02]} 43. Ke3 {[%clk 0:01:02]}  Bc4 {[%clk 0:00:01]} 44. a6 {[%clk 0:01:02]}  Bxa6 {[%clk 0:00:01]} 45. Nxa6 {[%clk 0:01:01]}  Rg3+ {[%clk 0:00:01]} 46. Kf4 {[%clk 0:01:00]}  Rg6 {[%clk 0:00:02]} 47. Nc5 {[%clk 0:01:00]}  f5 {[%clk 0:00:02]} 48. Bc7 {[%clk 0:00:58]}  Rgxh6 {[%clk 0:00:02]} 49. Rxh6 {[%clk 0:00:55]}  Rxh6 {[%clk 0:00:03]} 50. Kxf5 {[%clk 0:00:55]}  Rh5+ {[%clk 0:00:04]} 51. Kg4 {[%clk 0:00:55]}  Kg7 {[%clk 0:00:04]} 52. Kxh5 {[%clk 0:00:54]}  Kf7 {[%clk 0:00:04]} 53. Be5 {[%clk 0:00:54]}  Ke7 {[%clk 0:00:04]} 54. Kg5 {[%clk 0:00:55]}  Kf7 {[%clk 0:00:02]} 55. Kf5 {[%clk 0:00:55]} 1-0


[Site "https://www.chess.com"]

[Event "Titled Tuesday Blitz May 30 Late 2023"]
[White "NtcPou"]
[Black "Ardila, Oscar Humberto"]
[BlackFideId "4404742"]
[WhiteElo "2042"]
[BlackElo "1918"]
[Result "0-1"]
[Round "06"]
[TimeControl "180+2"]
[Date "2023.05.31"]
[WhiteClock "0:02:21"]
[BlackClock "0:02:13"]

1. e4 {[%clk 0:02:59]}  e5 {[%clk 0:02:59]} 2. Nf3 {[%clk 0:02:59]}  Nc6 {[%clk 0:03:00]} 3. Bc4 {[%clk 0:02:59]}  Nf6 {[%clk 0:02:59]} 4. d3 {[%clk 0:02:59]}  Bc5 {[%clk 0:02:59]} 5. O-O {[%clk 0:02:58]}  d6 {[%clk 0:02:59]} 6. Re1 {[%clk 0:02:56]}  O-O {[%clk 0:02:58]} 7. c3 {[%clk 0:02:56]}  h6 {[%clk 0:02:52]} 8. Nbd2 {[%clk 0:02:55]}  Be6 {[%clk 0:02:50]} 9. Bb3 {[%clk 0:02:55]}  Bxb3 {[%clk 0:02:49]} 10. axb3 {[%clk 0:02:54]}  a6 {[%clk 0:02:50]} 11. b4 {[%clk 0:02:54]}  Bb6 {[%clk 0:02:49]} 12. Nf1 {[%clk 0:02:54]}  Ne7 {[%clk 0:02:44]} 13. Ng3 {[%clk 0:02:54]}  Ng6 {[%clk 0:02:44]} 14. Qb3 {[%clk 0:02:52]}  Qd7 {[%clk 0:02:44]} 15. Nf5 {[%clk 0:02:51]}  Ne7 {[%clk 0:02:40]} 16. Ne3 {[%clk 0:02:50]}  c6 {[%clk 0:02:39]} 17. h3 {[%clk 0:02:44]}  Rad8 {[%clk 0:02:38]} 18. c4 {[%clk 0:02:40]}  Rfe8 {[%clk 0:02:35]} 19. Bd2 {[%clk 0:02:38]}  Ng6 {[%clk 0:02:33]} 20. Bc3 {[%clk 0:02:33]}  Nf4 {[%clk 0:02:32]} 21. Kh2 {[%clk 0:02:33]}  Nxd3 {[%clk 0:02:31]} 22. Red1 {[%clk 0:02:31]}  Nxf2 {[%clk 0:02:28]} 23. Rd2 {[%clk 0:02:30]}  N2xe4 {[%clk 0:02:23]} 24. Rdd1 {[%clk 0:02:28]}  Bxe3 {[%clk 0:02:19]} 25. Nxe5 {[%clk 0:02:24]}  Bf4+ {[%clk 0:02:15]} 26. Kh1 {[%clk 0:02:21]}  Bxe5 {[%clk 0:02:13]} 27. Bxe5 {[%clk 0:02:21]}  Rxe5 {[%clk 0:02:13]} 0-1


[Site "https://www.chess.com"]

[Event "Titled Tuesday Blitz May 30 Late 2023"]
[White "Sarkar, Justin"]
[Black "Burke, Paul"]
[WhiteFideId "2010011"]
[BlackFideId "2605767"]
[WhiteElo "2168"]
[BlackElo "1915"]
[Result "1-0"]
[Round "06"]
[TimeControl "180+2"]
[Date "2023.05.31"]
[WhiteClock "0:00:45"]
[BlackClock "0:00:04"]

1. e4 {[%clk 0:03:00]}  e5 {[%clk 0:02:32]} 2. f4 {[%clk 0:02:53]}  Bc5 {[%clk 0:02:31]} 3. Nc3 {[%clk 0:02:51]}  d6 {[%clk 0:02:31]} 4. Bc4 {[%clk 0:02:36]}  Nc6 {[%clk 0:02:31]} 5. Nf3 {[%clk 0:02:31]}  Nf6 {[%clk 0:02:30]} 6. d3 {[%clk 0:02:26]}  O-O {[%clk 0:02:30]} 7. Na4 {[%clk 0:02:15]}  Bg4 {[%clk 0:02:27]} 8. Nxc5 {[%clk 0:02:08]}  dxc5 {[%clk 0:02:27]} 9. h3 {[%clk 0:02:00]}  Bxf3 {[%clk 0:02:20]} 10. Qxf3 {[%clk 0:01:59]}  exf4 {[%clk 0:02:15]} 11. Bxf4 {[%clk 0:01:56]}  Nd4 {[%clk 0:02:14]} 12. Qf2 {[%clk 0:01:55]}  Ne6 {[%clk 0:01:44]} 13. Be5 {[%clk 0:01:48]}  Nd7 {[%clk 0:01:40]} 14. Bc3 {[%clk 0:01:46]}  c6 {[%clk 0:01:17]} 15. a4 {[%clk 0:01:43]}  a6 {[%clk 0:01:16]} 16. a5 {[%clk 0:01:41]}  b5 {[%clk 0:01:14]} 17. axb6 {[%clk 0:01:41]}  Nxb6 {[%clk 0:01:14]} 18. Bb3 {[%clk 0:01:37]}  Nd4 {[%clk 0:01:03]} 19. Ba2 {[%clk 0:01:26]}  Nd7 {[%clk 0:00:56]} 20. Bxd4 {[%clk 0:01:20]}  cxd4 {[%clk 0:00:55]} 21. Qxd4 {[%clk 0:01:19]}  Qh4+ {[%clk 0:00:54]} 22. Qf2 {[%clk 0:01:18]}  Qe7 {[%clk 0:00:45]} 23. O-O {[%clk 0:01:18]}  Qe5 {[%clk 0:00:42]} 24. c3 {[%clk 0:01:14]}  Rad8 {[%clk 0:00:40]} 25. Bc4 {[%clk 0:01:11]}  a5 {[%clk 0:00:33]} 26. Qf5 {[%clk 0:01:07]}  Qxf5 {[%clk 0:00:28]} 27. Rxf5 {[%clk 0:01:07]}  Nb6 {[%clk 0:00:28]} 28. Raxa5 {[%clk 0:01:03]}  Nxc4 {[%clk 0:00:28]} 29. dxc4 {[%clk 0:01:03]}  Rd2 {[%clk 0:00:27]} 30. Rf2 {[%clk 0:01:02]}  Rd1+ {[%clk 0:00:24]} 31. Kh2 {[%clk 0:01:01]}  h6 {[%clk 0:00:24]} 32. Rc5 {[%clk 0:00:59]}  Rc8 {[%clk 0:00:22]} 33. b4 {[%clk 0:00:58]}  Rc1 {[%clk 0:00:22]} 34. Rf3 {[%clk 0:00:57]}  Re1 {[%clk 0:00:12]} 35. e5 {[%clk 0:00:50]}  Re8 {[%clk 0:00:06]} 36. Rxc6 {[%clk 0:00:49]}  R1xe5 {[%clk 0:00:05]} 37. b5 {[%clk 0:00:46]}  Re3 {[%clk 0:00:04]} 38. Rxe3 {[%clk 0:00:46]}  Rxe3 {[%clk 0:00:04]} 39. b6 {[%clk 0:00:46]}  Rxc3 {[%clk 0:00:04]} 40. b7 {[%clk 0:00:45]} 1-0


[Site "https://www.chess.com"]

[Event "Titled Tuesday Blitz May 30 Late 2023"]
[White "Sanchez, Robert"]
[Black "Leschinsky, Gary"]
[WhiteFideId "2034360"]
[BlackFideId "30951321"]
[WhiteElo "1809"]
[BlackElo "1855"]
[Result "0-1"]
[Round "06"]
[TimeControl "180+2"]
[Date "2023.05.31"]
[WhiteClock "0:02:18"]
[BlackClock "0:02:23"]

1. Nf3 {[%clk 0:02:59]}  d5 {[%clk 0:02:59]} 2. e3 {[%clk 0:02:59]}  Nf6 {[%clk 0:02:59]} 3. c4 {[%clk 0:02:59]}  c6 {[%clk 0:02:59]} 4. Nc3 {[%clk 0:02:59]}  e6 {[%clk 0:02:59]} 5. b3 {[%clk 0:03:00]}  Nbd7 {[%clk 0:02:59]} 6. Bb2 {[%clk 0:03:00]}  Bd6 {[%clk 0:03:00]} 7. d4 {[%clk 0:02:58]}  O-O {[%clk 0:03:00]} 8. Bd3 {[%clk 0:02:59]}  Qe7 {[%clk 0:02:59]} 9. O-O {[%clk 0:02:55]}  Re8 {[%clk 0:02:47]} 10. Re1 {[%clk 0:02:51]}  e5 {[%clk 0:02:44]} 11. cxd5 {[%clk 0:02:48]}  e4 {[%clk 0:02:42]} 12. dxc6 {[%clk 0:02:46]}  bxc6 {[%clk 0:02:41]} 13. Be2 {[%clk 0:02:44]}  exf3 {[%clk 0:02:39]} 14. Bxf3 {[%clk 0:02:45]}  Bb7 {[%clk 0:02:39]} 15. e4 {[%clk 0:02:46]}  Bb4 {[%clk 0:02:37]} 16. e5 {[%clk 0:02:44]}  Bxc3 {[%clk 0:02:32]} 17. Bxc3 {[%clk 0:02:42]}  Nd5 {[%clk 0:02:33]} 18. Bxd5 {[%clk 0:02:41]}  cxd5 {[%clk 0:02:34]} 19. f4 {[%clk 0:02:41]}  Rac8 {[%clk 0:02:32]} 20. Qd2 {[%clk 0:02:39]}  Qe6 {[%clk 0:02:29]} 21. Rf1 {[%clk 0:02:34]}  Qf5 {[%clk 0:02:27]} 22. Rac1 {[%clk 0:02:31]}  Rc6 {[%clk 0:02:25]} 23. Qe2 {[%clk 0:02:18]}  Ba6 {[%clk 0:02:23]} 0-1


[Site "https://www.chess.com"]

[Event "Titled Tuesday Blitz May 30 Late 2023"]
[White "mohsengabr2002"]
[Black "Hartikainen, Jarmo"]
[BlackFideId "503134"]
[WhiteElo "2220"]
[BlackElo "2101"]
[Result "1/2-1/2"]
[Round "06"]
[TimeControl "180+2"]
[Date "2023.05.31"]
[WhiteClock "0:01:40"]
[BlackClock "0:00:26"]

1. g3 {[%clk 0:03:00]}  g6 {[%clk 0:02:59]} 2. f3 {[%clk 0:03:01]}  Nf6 {[%clk 0:02:58]} 3. e3 {[%clk 0:03:02]}  d5 {[%clk 0:02:58]} 4. d3 {[%clk 0:03:03]}  h5 {[%clk 0:02:55]} 5. c3 {[%clk 0:03:03]}  c5 {[%clk 0:02:52]} 6. Nh3 {[%clk 0:03:01]}  Nc6 {[%clk 0:02:51]} 7. Nf2 {[%clk 0:03:01]}  e5 {[%clk 0:02:49]} 8. Bg2 {[%clk 0:03:01]}  Bg7 {[%clk 0:02:47]} 9. a3 {[%clk 0:03:00]}  O-O {[%clk 0:02:47]} 10. b4 {[%clk 0:02:55]}  cxb4 {[%clk 0:02:42]} 11. axb4 {[%clk 0:02:55]}  Be6 {[%clk 0:02:39]} 12. O-O {[%clk 0:02:52]}  d4 {[%clk 0:02:28]} 13. exd4 {[%clk 0:02:52]}  exd4 {[%clk 0:02:28]} 14. b5 {[%clk 0:02:52]}  Ne7 {[%clk 0:02:23]} 15. c4 {[%clk 0:02:52]}  Qd7 {[%clk 0:02:09]} 16. Ba3 {[%clk 0:02:49]}  Rfe8 {[%clk 0:01:54]} 17. Nd2 {[%clk 0:02:48]}  b6 {[%clk 0:01:41]} 18. Bxe7 {[%clk 0:02:47]}  Rxe7 {[%clk 0:01:36]} 19. f4 {[%clk 0:02:46]}  Rd8 {[%clk 0:01:35]} 20. Nde4 {[%clk 0:02:46]}  Nxe4 {[%clk 0:01:34]} 21. Nxe4 {[%clk 0:02:46]}  Bf5 {[%clk 0:01:34]} 22. Rf2 {[%clk 0:02:41]}  Bxe4 {[%clk 0:01:33]} 23. Bxe4 {[%clk 0:02:41]}  Rxe4 {[%clk 0:01:29]} 24. dxe4 {[%clk 0:02:41]}  d3 {[%clk 0:01:29]} 25. e5 {[%clk 0:02:41]}  Bf8 {[%clk 0:01:25]} 26. Rd2 {[%clk 0:02:38]}  Bc5+ {[%clk 0:01:23]} 27. Kg2 {[%clk 0:02:38]}  Qd4 {[%clk 0:01:22]} 28. Rxa7 {[%clk 0:02:31]}  Qxc4 {[%clk 0:01:14]} 29. Qf3 {[%clk 0:02:06]}  Bb4 {[%clk 0:01:07]} 30. Rd1 {[%clk 0:02:05]}  d2 {[%clk 0:01:01]} 31. Ra8 {[%clk 0:02:02]}  Rxa8 {[%clk 0:00:59]} 32. Qxa8+ {[%clk 0:02:02]}  Kg7 {[%clk 0:00:58]} 33. Qf3 {[%clk 0:01:56]}  Qxb5 {[%clk 0:00:55]} 34. h3 {[%clk 0:01:42]}  Qc5 {[%clk 0:00:47]} 35. g4 {[%clk 0:01:42]}  hxg4 {[%clk 0:00:42]} 36. hxg4 {[%clk 0:01:43]}  Qd4 {[%clk 0:00:37]} 37. Qf2 {[%clk 0:01:41]}  Qe4+ {[%clk 0:00:26]} 38. Qf3 {[%clk 0:01:41]}  Qd4 {[%clk 0:00:26]} 39. Qf2 {[%clk 0:01:40]}  Qe4+ {[%clk 0:00:26]} 40. Qf3 {[%clk 0:01:40]}  Qd4 {[%clk 0:00:26]} 1/2-1/2


[Site "https://www.chess.com"]

[Event "Titled Tuesday Blitz May 30 Late 2023"]
[White "Schut, Han"]
[Black "Martinez, Ayelen"]
[WhiteFideId "1005561"]
[BlackFideId "118702"]
[WhiteElo "2024"]
[BlackElo "2125"]
[Result "0-1"]
[Round "06"]
[TimeControl "180+2"]
[Date "2023.05.31"]
[WhiteClock "0:00:01"]
[BlackClock "0:00:06"]

1. e4 {[%clk 0:02:54]}  c5 {[%clk 0:02:31]} 2. Nf3 {[%clk 0:02:52]}  d6 {[%clk 0:02:31]} 3. d4 {[%clk 0:02:52]}  cxd4 {[%clk 0:02:32]} 4. Nxd4 {[%clk 0:02:53]}  Nf6 {[%clk 0:02:32]} 5. f3 {[%clk 0:02:52]}  e5 {[%clk 0:02:23]} 6. Bb5+ {[%clk 0:02:49]}  Bd7 {[%clk 0:02:14]} 7. Bxd7+ {[%clk 0:02:48]}  Qxd7 {[%clk 0:02:11]} 8. Nf5 {[%clk 0:02:44]}  d5 {[%clk 0:02:11]} 9. Bg5 {[%clk 0:02:43]}  dxe4 {[%clk 0:02:07]} 10. Bxf6 {[%clk 0:02:42]}  Qxd1+ {[%clk 0:01:54]} 11. Kxd1 {[%clk 0:02:43]}  gxf6 {[%clk 0:01:54]} 12. fxe4 {[%clk 0:02:43]}  Rg8 {[%clk 0:01:51]} 13. g3 {[%clk 0:02:39]}  Nd7 {[%clk 0:01:46]} 14. Ke2 {[%clk 0:02:03]}  Rc8 {[%clk 0:01:10]} 15. Nc3 {[%clk 0:01:42]}  Bb4 {[%clk 0:01:04]} 16. Nd5 {[%clk 0:01:36]}  Rxc2+ {[%clk 0:01:04]} 17. Kd3 {[%clk 0:01:34]}  Rd2+ {[%clk 0:00:48]} 18. Ke3 {[%clk 0:01:12]}  Rxb2 {[%clk 0:00:39]} 19. Nxb4 {[%clk 0:00:37]}  Rxb4 {[%clk 0:00:40]} 20. Rhc1 {[%clk 0:00:37]}  Nb6 {[%clk 0:00:33]} 21. Rc7 {[%clk 0:00:25]}  Nc4+ {[%clk 0:00:19]} 22. Kd3 {[%clk 0:00:17]}  Nb2+ {[%clk 0:00:17]} 23. Kc3 {[%clk 0:00:15]}  Rb6 {[%clk 0:00:17]} 24. Rc8+ {[%clk 0:00:13]}  Kd7 {[%clk 0:00:15]} 25. Rxg8 {[%clk 0:00:14]}  Na4+ {[%clk 0:00:14]} 26. Kd3 {[%clk 0:00:14]}  Nb2+ {[%clk 0:00:12]} 27. Ke3 {[%clk 0:00:13]}  Rc6 {[%clk 0:00:10]} 28. Rg7 {[%clk 0:00:10]}  Ke6 {[%clk 0:00:08]} 29. Rxh7 {[%clk 0:00:08]}  Rc3+ {[%clk 0:00:07]} 30. Kf2 {[%clk 0:00:08]}  Nd3+ {[%clk 0:00:07]} 31. Kg2 {[%clk 0:00:06]}  Nc5 {[%clk 0:00:07]} 32. Ng7+ {[%clk 0:00:06]}  Ke7 {[%clk 0:00:07]} 33. Nf5+ {[%clk 0:00:06]}  Ke6 {[%clk 0:00:07]} 34. Rd1 {[%clk 0:00:05]}  Nxe4 {[%clk 0:00:07]} 35. Ng7+ {[%clk 0:00:04]}  Ke7 {[%clk 0:00:07]} 36. Nf5+ {[%clk 0:00:04]}  Ke6 {[%clk 0:00:07]} 37. Nh4 {[%clk 0:00:03]}  Rc2+ {[%clk 0:00:07]} 38. Kg1 {[%clk 0:00:02]}  Ng5 {[%clk 0:00:06]} 39. Rb1 {[%clk 0:00:01]}  Nxh7 {[%clk 0:00:06]} 0-1


[Site "https://www.chess.com"]